[Event "Romanian Superleague 2022"]
[Site "Oradea"]
[Date "2022.09.27"]
[Round "7.25"]
[White "Nguyen, Thai Dai Van"]
[Black "Marin, Mihail"]
[Result "1-0"]
[ECO "A41"]
[WhiteElo "2627"]
[BlackElo "2457"]
[Annotator "TA"]
[PlyCount "67"]
[EventDate "2022.09.21"]
[EventType "team-tourn"]
[EventCountry "ROU"]
[SourceTitle "playchess.com"]
[Source "ChessBase"]
[SourceQuality "1"]
[TimeControl "40/5400+30:1800+30"]

{[%evp 11,67,50,50,37,58,55,58,54,74,77,82,96,92,78,111,102,104,105,185,182,189,193,239,194,195,177,178,174,431,432,438,404,549,540,531,542,512,418,408,387,506,485,475,462,479,459,836,872,825,458,657,652,636,622,916,814,1616,628]} 1. d4 {[%emt 0:02:17]} g6 {[%emt 0:00:05]} 2. c4 {[%emt 0:01:27]} Bg7 {[%emt 0:00:08]} 3. Nf3 {[%emt 0:01:08]} d6 {[%emt 0:00:12]} 4. Nc3 {[%emt 0:01:40]} e5 {[%emt 0:00:35]} 5. dxe5 {[%emt 0:01:42]} dxe5 {[%emt 0:04:39]} 6. Qxd8+ {[%emt 0:00:28]} Kxd8 {[%emt 0:00:05]} 7. g3 {[%emt 0:01:19] A41: 1 d4 d6: Tartakower System and Modern Defence.} f6 {[%emt 0:07:01]} 8. Bg2 {[%emt 0:01:26]} c6 {[%emt 0:01:23]} 9. O-O {[%emt 0:01:49] White is slightly better.} Be6 {[%emt 0:02:10]} 10. b4 {[%emt 0:12:16][%cal Bb2b4,Bb4b5][%mdl 32]} Nh6 {[%emt 0:06:17]} 11. b5 {[%emt 0:03:04]} Nf7 {[%emt 0:00:28]} 12. Rd1+ {[%emt 0:09:39]} Nd7 {[%emt 0:06:47]} 13. Nd2 {[%emt 0:15:03] White has more active pieces.} Kc7 {[%emt 0:03:40] [#]} 14. Nb3 $146 {[%emt 0:01:31] [#] aiming for Na5.} ({Predecessor:} 14. Ba3 Bf8 15. Bxf8 Rhxf8 16. Nb3 a5 17. Na4 Rad8 18. Rdc1 f5 19. Bd5 Rfe8 20. Rab1 {1-0 (38) Cossmann,R-Thau,O DESC email 2014}) 14... Rad8 {[%emt 0:04:26]} (14... Bxc4 $2 15. bxc6 bxc6 16. Na5 $18) (14... a5 $16 {was worth a try.}) 15. bxc6 $18 {[%emt 0:04:40]} bxc6 {[%emt 0:00:06]} 16. Na5 {[%emt 0:02:26]} Nb6 {[%emt 0:02:18]} (16... Nb8 {was called for.} 17. Be3 Rxd1+ 18. Rxd1 f5) 17. Bd2 {[%emt 0:13:46]} (17. Nxc6 Rxd1+ 18. Nxd1 Nxc4 $14) 17... Nxc4 {[%emt 0:09:23]} 18. Nxc4 {[%emt 0:00:07]} Bxc4 {[%emt 0:00:03]} 19. Na4 {[%emt 0:00:28]} Bxe2 $2 {[%emt 0:02:34]} (19... e4) 20. Ba5+ {[%emt 0:00:13]} Kc8 {[%emt 0:01:27]} 21. Rdc1 {[%emt 0:01:21]} Bb5 {[%emt 0:06:14]} 22. Bxc6 {[%emt 0:01:33]} Bxc6 {[%emt 0:05:40]} 23. Rxc6+ {[%emt 0:00:13]} Kd7 {[%emt 0:00:32]} 24. Rc7+ {[%emt 0:00:08]} ({Not} 24. Rac1 Bh6 $16) 24... Ke8 {[%emt 0:00:07]} 25. Rxa7 {[%emt 0:00:02]} Rb8 {[%emt 0:01:04]} 26. Rd1 {[%emt 0:03:54] [#] Hoping for Rdd7. White is clearly winning.} Bf8 {[%emt 0:02:19]} 27. Bc7 {[%emt 0:00:24] Prevents Bd6.} Rb4 {[%emt 0:02:01]} 28. Bb6 {[%emt 0:06:51] Prevents Rd4.} Bd6 {[%emt 0:00:59]} (28... Rc4 $142 29. Rd5 Nd6) 29. Rc1 {[%emt 0:00:07] White threatens Rc8+ and mate.} Kf8 {[%emt 0:01:07]} 30. a3 {[%emt 0:01:49]} Re4 {[%emt 0:01:49]} (30... Rxa4 $142 31. Rxa4 Ke7 32. Ra7+ Ke6) 31. Nc5 {[%emt 0:01:18]} Bxc5 {[%emt 0:00:32]} 32. Rxc5 {[%emt 0:00:04] Strongly threatening Rcc7.} Re1+ {[%emt 0:00:27]} 33. Kg2 {[%emt 0:00:01]} Rb1 {[%emt 0:00:08]} 34. Ba5 {[%emt 0:01:10] White took control after the opening.  Weighted Error Value: White=0.26 (precise) /Black=0.62} (34. Rcc7 $142 Rxb6 35. Rxf7+ Ke8 36. Rfb7 Rxb7 37. Rxb7) 1-0

[Event "Romanian Superleague 2022"]
[Site "Oradea"]
[Date "2022.09.27"]
[Round "7.26"]
[White "Miron, Lucian-Costin"]
[Black "Nisipeanu, Liviu-Dieter"]
[Result "1/2-1/2"]
[ECO "B33"]
[WhiteElo "2498"]
[BlackElo "2633"]
[Annotator "TA"]
[PlyCount "91"]
[EventDate "2022.09.21"]
[EventType "team-tourn"]
[EventCountry "ROU"]
[SourceTitle "playchess.com"]
[Source "ChessBase"]
[SourceQuality "1"]
[TimeControl "40/5400+30:1800+30"]

{[%evp 24,91,12,12,18,7,25,19,27,0,20,47,40,16,37,34,37,37,33,0,25,0,0,0,0,0,0,0,0,0,0,0,0,-74,-75,-114,-117,-168,-17,-19,-18,-13,-17,-141,-131,-253,-235,-397,0,0,0,0,0,0,0,0,0,0,0,0,0,0,0,0,0,0,0,0,8,0]} 1. e4 {[%emt 0:00:03]} c5 {[%emt 0:00:06]} 2. Nf3 {[%emt 0:00:05]} Nc6 {[%emt 0:00:05]} 3. d4 {[%emt 0:02:52]} cxd4 {[%emt 0:00:07]} 4. Nxd4 {[%emt 0:00:03]} Nf6 {[%emt 0:00:13]} 5. Nc3 {[%emt 0:00:07]} e5 {[%emt 0:00:03]} 6. Ndb5 {[%emt 0:00:07]} d6 {[%emt 0:00:06]} 7. Bg5 {[%emt 0:00:07]} a6 {[%emt 0:00:05]} 8. Na3 {[%emt 0:00:07]} b5 {[%emt 0:00:05]} 9. Nd5 {[%emt 0:00:23]} Be7 {[%emt 0:00:09]} 10. Bxf6 {[%emt 0:00:20]} Bxf6 {[%emt 0:00:06]} 11. c3 {[%emt 0:00:36]} Bg5 {[%emt 0:00:28]} 12. Nc2 {[%emt 0:00:11]} Rb8 {[%emt 0:03:36]} 13. a4 {[%emt 0:00:07]} bxa4 {[%emt 0:00:05] B33: Sicilian: Pelikan and Sveshnikov Variations.} 14. Ncb4 {[%emt 0:00:06]} Nxb4 {[%emt 0:00:09]} 15. cxb4 {[%emt 0:00:08]} O-O {[%emt 0:01:52]} 16. h4 {[%emt 0:01:13]} Bh6 {[%emt 0:00:29]} 17. Rxa4 {[%emt 0:00:23]} a5 {[%emt 0:03:54]} 18. b5 {[%emt 0:11:27]} (18. Rxa5 Rxb4 $3 {[%mdl 512]} 19. Ra8 Rxe4+ 20. Be2 Rd4 $17) (18. bxa5 Rxb2 19. Bd3 Bd7 $17) 18... Bd7 {[%emt 0:00:46]} 19. Nc3 {[%emt 0:04:35]} d5 {[%emt 0:04:40]} 20. exd5 {[%emt 0:02:05]} f5 {[%emt 0:03:24]} 21. g3 {[%emt 0:14:44]} Kh8 {[%emt 0:07:06]} 22. Be2 {[%emt 0:07:32] [#]} f4 $146 {[%emt 0:08:55]} ({Predecessor:} 22... Qb6 23. O-O Rbd8 24. Kg2 Bc8 25. f4 Rfe8 26. fxe5 Rxe5 27. Qd4 Qf6 28. Rc4 Bd7 {½-½ (41) Anand,V (2804)-Grischuk,A (2781) Stavanger 2015}) 23. g4 {[%emt 0:06:43] Threatens to win with g5.} f3 $1 {[%emt 0:01:51]} 24. Bxf3 {[%emt 0:03:14]} Bc1 {[%emt 0:00:11]} 25. Qxc1 {[%emt 0:19:06]} Rxf3 {[%emt 0:00:08]} 26. Re4 {[%emt 0:07:53]} Qb6 {[%emt 0:06:00]} 27. Qd2 {[%emt 0:11:17]} Rbf8 {[%emt 0:01:42][%cal Rf3f2]} 28. Rh2 {[%emt 0:01:06]} (28. Rxe5 Bxb5 29. Re3 (29. Nxb5 Qxb5 30. Re4 Ra3 $15) 29... Rxf2 30. Qxf2 Rxf2 31. Kxf2 Bd7 $15) (28. h5 $11) 28... Bxb5 $17 {[%emt 0:15:49]} 29. Re3 {[%emt 0:04:19] Inhibits Rd3.} R3f4 {[%emt 0:13:10]} 30. Rxe5 {[%emt 0:01:19]} (30. Re4 $17 {was worth a try.}) 30... Bd7 $2 {[%emt 0:03:43]} (30... Qd6 $1 $19 {[%cal Rd6e5]} 31. Qe3 Qb4) 31. Rg2 $1 $11 {[%emt 0:02:09]} Qf6 {[%emt 0:03:12] Against Re7} 32. Qe3 {[%emt 0:01:04]} (32. Re4 $2 Rxe4+ 33. Nxe4 Qf3 $19) 32... Qxh4 {[%emt 0:02:01]} 33. Rh5 {[%emt 0:00:43]} (33. Ne2 $1 $11 R4f7 34. Rh5) 33... Qf6 $17 {[%emt 0:04:22]} 34. Rgh2 {[%emt 0:00:07]} (34. Re5 $17) 34... h6 $19 {[%emt 0:02:19]} 35. g5 $2 {[%emt 0:00:06]} (35. Re5 {was the only defense.} Bxg4 36. Re7) 35... Qg6 $2 {[%emt 0:00:13]} (35... Qf5 $1 $19 {White must now prevent ...Re8.} 36. gxh6 g5) 36. Kd2 $36 {[%emt 0:01:07][%cal Rg5h6][%mdl 2048] White has good play. The position is equal.} ({Much worse is} 36. gxh6 Re8 37. Re5 (37. hxg7+ $2 Kxg7 38. Re5 Qg1+ 39. Kd2 Qxh2 $19) 37... Qg1+ 38. Kd2 Qxh2 $15) (36. Rxh6+ $2 gxh6 37. Rxh6+ Qxh6 $3 {[%mdl 512]} 38. gxh6 Re8 $19) 36... Rxf2+ {[%emt 0:05:21]} 37. Rxf2 {[%emt 0:00:27] Chess con chili.} Rxf2+ {[%emt 0:00:05]} 38. Qxf2 {[%emt 0:00:06]} Qxh5 {[%emt 0:00:02]} 39. gxh6 {[%emt 0:00:24]} Qxh6+ {[%emt 0:00:18][%mdl 4096] Endgame KQB-KQN} 40. Kd3 {[%emt 0:00:00]} Qa6+ {[%emt 0:00:00]} 41. Ke4 {[%emt 0:06:22] Hoping for Qh4+.} Kg8 {[%emt 0:02:51]} 42. Ke5 {[%emt 0:01:47]} a4 {[%emt 0:22:36]} 43. Ne4 {[%emt 0:19:25]} a3 {[%emt 0:01:25]} 44. bxa3 {[%emt 0:00:09]} Qxa3 {[%emt 0:00:04]} 45. Nc5 {[%emt 0:01:04]} Bg4 {[%emt 0:01:30]} 46. Ne4 {[%emt 0:03:31] Weighted Error Value: White=0.21 (precise) /Black=0.27 (precise)} 1/2-1/2

[Event "Romanian Superleague 2022"]
[Site "Oradea"]
[Date "2022.09.27"]
[Round "7.27"]
[White "Mendonca, Leon Luke"]
[Black "Secheres, Adrian-Simion"]
[Result "1-0"]
[ECO "E94"]
[WhiteElo "2558"]
[BlackElo "2375"]
[Annotator "TA"]
[PlyCount "91"]
[EventDate "2022.09.21"]
[EventType "team-tourn"]
[EventCountry "ROU"]
[SourceTitle "playchess.com"]
[Source "ChessBase"]
[SourceQuality "1"]
[TimeControl "40/5400+30:1800+30"]

{[%evp 20,91,33,31,66,65,78,74,78,67,95,98,97,79,90,93,158,116,172,146,170,164,194,195,195,184,187,200,195,187,212,219,214,212,215,212,213,213,219,212,220,233,225,222,243,241,237,220,253,236,250,243,240,250,402,399,371,347,341,339,497,495,500,478,490,482,577,586,571,565,628,594,1012,1008]} 1. d4 {[%emt 0:00:06]} Nf6 {[%emt 0:00:20]} 2. c4 {[%emt 0:00:39]} g6 {[%emt 0:00:20]} 3. Nc3 {[%emt 0:00:17]} Bg7 {[%emt 0:00:15]} 4. e4 {[%emt 0:00:12]} d6 {[%emt 0:00:07]} 5. Nf3 {[%emt 0:00:12]} O-O {[%emt 0:00:18]} 6. Be2 {[%emt 0:00:05]} e5 {[%emt 0:00:49]} 7. O-O {[%emt 0:00:07]} exd4 {[%emt 0:00:41]} 8. Nxd4 {[%emt 0:00:07]} Re8 {[%emt 0:00:07]} 9. f3 {[%emt 0:00:19]} c6 {[%emt 0:00:19]} 10. Nc2 {[%emt 0:01:25]} Na6 {[%emt 0:01:50]} 11. Kh1 {[%emt 0:02:27]} Qe7 {[%emt 0:10:25] [#] E94: King's Indian: Classical: 6 Be2 e5 7 0-0: Various Black 7th moves.} 12. Bf4 $146 {[%emt 0:09:27]} ({Predecessor:} 12. Bg5 Nc5 13. Qd2 a5 14. Rfd1 Rd8 15. Qe3 Ne6 16. Bh4 Re8 17. Na4 Nc5 18. Nb6 Ra6 19. Bg3 Rxb6 20. Bxd6 {½-½ (69) Engelmann,J (2285)-Kuchynka,L (2283) Germany 2019}) 12... Rd8 {[%emt 0:02:30] Black is now going downhill.} 13. Qd2 {[%emt 0:01:32]} Be6 {[%emt 0:05:14] White is better.} 14. Bg5 {[%emt 0:07:58]} Qf8 {[%emt 0:17:31]} 15. Rad1 {[%emt 0:07:42]} h6 {[%emt 0:06:10]} 16. Be3 {[%emt 0:02:12][%cal Bg5e3,Be3a7,Ba7b6][%mdl 32]} Nc7 {[%emt 0:05:39]} 17. Nd4 {[%emt 0:03:53]} Re8 {[%emt 0:05:41]} (17... Bc8 $142) 18. Nb3 {[%emt 0:21:19] Black must now prevent Bf4. White is more active.} Rad8 {[%emt 0:15:56]} (18... Red8 $16 {keeps fighting.} 19. Na5 Bc8) 19. Bxa7 $18 {[%emt 0:02:57]} Na6 {[%emt 0:06:33]} 20. Bb6 {[%emt 0:02:20]} Rd7 {[%emt 0:00:21]} 21. Be3 {[%emt 0:01:03]} Nc5 {[%emt 0:05:07]} 22. Nd4 {[%emt 0:00:39]} Rdd8 {[%emt 0:00:55]} 23. b4 {[%emt 0:05:42][%cal Bb2b4,Bb4b5][%mdl 32]} Ncd7 {[%emt 0:00:20]} 24. b5 {[%emt 0:05:17]} c5 {[%emt 0:01:37]} 25. Nxe6 {[%emt 0:04:30]} Rxe6 {[%emt 0:00:05]} 26. a4 {[%emt 0:00:58]} Ra8 {[%emt 0:01:12]} 27. Ra1 {[%emt 0:01:08]} b6 {[%emt 0:02:48]} 28. Ra3 {[%emt 0:01:50]} Ra5 {[%emt 0:01:38]} 29. Rd1 {[%emt 0:04:23]} Kh7 {[%emt 0:05:21]} 30. Bf4 {[%emt 0:04:09]} Ne5 {[%emt 0:00:58]} 31. g4 {[%emt 0:03:01]} Qa8 {[%emt 0:01:41]} 32. Bg3 {[%emt 0:01:53]} Ra7 {[%emt 0:02:53]} 33. h3 {[%emt 0:01:23]} g5 {[%emt 0:00:24]} 34. h4 {[%emt 0:02:45]} gxh4 {[%emt 0:00:26]} 35. Bxh4 {[%emt 0:00:07]} Ng6 {[%emt 0:00:37]} 36. Bg3 {[%emt 0:00:36]} Ne8 $2 {[%emt 0:00:39] [#]} (36... Kg8 {was worth a try.} 37. Nd5 (37. Bxd6 $2 Rd7 $19) 37... Nxd5) 37. Nd5 {[%emt 0:01:36][%cal Bc3d5,Bd5e3,Be3f5][%mdl 32]} Qd8 {[%emt 0:00:21]} 38. Kg2 {[%emt 0:00:36]} Nf6 {[%emt 0:00:31]} 39. Ne3 {[%emt 0:00:33]} Ne7 {[%emt 0:00:47]} (39... Qa8 $142 40. a5 (40. Bxd6 Nxe4 41. fxe4 Qxe4+ 42. Kh3 Rxd6 $11) 40... Kg8) 40. e5 {[%emt 0:00:00] White is clearly winning.} Nd7 {[%emt 0:00:00]} 41. exd6 {[%emt 0:08:55]} Ng6 {[%emt 0:01:23]} 42. Nf5 {[%emt 0:05:19]} Qf6 {[%emt 0:05:22]} 43. f4 {[%emt 0:06:16]} Qb2 {[%emt 0:02:39]} 44. Ra2 {[%emt 0:01:37]} Qb3 {[%emt 0:02:56]} 45. Bd3 {[%emt 0:02:14]} Nf6 {[%emt 0:08:13]} 46. Rb1 {[%emt 0:02:05] Weighted Error Value: White=0.04 (flawless) /Black=0.30} 1-0

[Event "Romanian Superleague 2022"]
[Site "Oradea"]
[Date "2022.09.27"]
[Round "7.28"]
[White "Filip, Andrei"]
[Black "Ghimpu, Samuel-Timotei"]
[Result "1/2-1/2"]
[ECO "B40"]
[WhiteElo "2356"]
[BlackElo "2434"]
[Annotator "TA"]
[PlyCount "71"]
[EventDate "2022.09.21"]
[EventType "team-tourn"]
[EventCountry "ROU"]
[SourceTitle "playchess.com"]
[Source "ChessBase"]
[SourceQuality "1"]
[TimeControl "40/5400+30:1800+30"]

{[%evp 9,71,0,0,14,2,0,0,0,0,-8,-5,-6,-4,-5,-10,0,0,0,-5,-33,-30,-30,-26,-23,-20,-31,-25,-45,-17,-93,-88,-100,-78,-52,-58,-73,-65,-72,-66,-68,-57,-56,-50,-66,-19,-81,-95,-138,-72,-114,-106,-104,-67,-96,-114,-254,-161,-128,0,-167,0,-147,0,-177]} 1. e4 {[%emt 0:00:04]} c5 {[%emt 0:00:28]} 2. Nf3 {[%emt 0:00:08]} e6 {[%emt 0:00:23][%cal Be7e6,Be6e5][%mdl 32]} 3. g3 {[%emt 0:00:25]} Nc6 {[%emt 0:02:06]} 4. Bg2 {[%emt 0:00:07]} Nf6 {[%emt 0:00:57]} 5. Qe2 {[%emt 0:00:50]} e5 {[%emt 0:01:13]} 6. O-O {[%emt 0:00:05] B40: Sicilian: 2...e6, Unusual lines.} Be7 {[%emt 0:00:12]} 7. c3 {[%emt 0:00:28][%cal Od2d4]} O-O {[%emt 0:00:17]} 8. Na3 $1 {[%emt 0:02:43][%cal Od2d4] 8.Na3 is better than 8.Rd1.} Re8 {[%emt 0:01:11]} 9. d3 {[%emt 0:00:22]} h6 {[%emt 0:00:18]} 10. Nc4 {[%emt 0:00:58]} Bf8 {[%emt 0:00:26]} 11. Ne3 {[%emt 0:02:27]} d5 {[%emt 0:00:06]} 12. exd5 {[%emt 0:02:11]} Nxd5 {[%emt 0:00:35]} 13. Nxd5 {[%emt 0:01:21]} Qxd5 {[%emt 0:00:02]} 14. Rd1 {[%emt 0:07:39]} Qd8 {[%emt 0:08:03] [#]} 15. Nd2 $146 {[%emt 0:07:41]} ({Predecessor:} 15. Be3 Nd4 16. Bxd4 exd4 17. Qc2 dxc3 18. Qxc3 Be6 19. d4 Qb6 20. d5 Bg4 21. Re1 Bxf3 22. Bxf3 {½-½ (37) Erdos,V (2615)-Indjic,A (2612) Terme Catez 2021}) 15... Bf5 {[%emt 0:04:36]} 16. Nc4 {[%emt 0:03:07]} Qd7 {[%emt 0:00:06]} 17. Be4 {[%emt 0:10:36]} Rad8 {[%emt 0:06:11] White should prevent ...Bxe4.} 18. Be3 {[%emt 0:03:45]} Bg4 {[%emt 0:03:41]} 19. Bf3 {[%emt 0:00:30]} (19. f3 $11 Be6 20. a4) 19... Bxf3 $17 {[%emt 0:21:43]} 20. Qxf3 {[%emt 0:00:10]} Qe6 {[%emt 0:00:26]} 21. a4 {[%emt 0:05:29]} f5 {[%emt 0:11:22]} 22. b3 {[%emt 0:07:54]} Rd7 {[%emt 0:15:00]} 23. Qe2 {[%emt 0:14:04]} b6 {[%emt 0:02:35]} 24. Re1 {[%emt 0:01:11]} g5 {[%emt 0:02:54]} 25. Rad1 {[%emt 0:01:27]} Bg7 {[%emt 0:01:31]} 26. Bc1 {[%emt 0:04:11]} Qg6 {[%emt 0:00:42]} (26... Red8 $15) 27. Qf3 {[%emt 0:01:52]} (27. Bb2 $11 {remains equal.}) 27... Red8 {[%emt 0:02:53]} 28. h3 {[%emt 0:05:10]} g4 {[%emt 0:04:16]} (28... a6 $142 {Hoping for ...b5.} 29. Nb2 (29. Nxb6 $2 e4 $19) 29... Qe6) 29. Qe2 {[%emt 0:05:36]} gxh3 {[%emt 0:00:57]} 30. Kh2 {[%emt 0:00:28]} h5 {[%emt 0:00:18]} 31. Qf3 {[%emt 0:02:01]} Rd5 {[%emt 0:02:29]} 32. Bb2 {[%emt 0:06:52]} (32. Qh1 $17) 32... Qg4 {[%emt 0:01:45]} 33. Qh1 {[%emt 0:00:24] [#] Threatens to win with Ne3.} Qg6 {[%emt 0:03:18]} 34. Qf3 {[%emt 0:01:39]} Qg4 {[%emt 0:01:17]} 35. Qh1 {[%emt 0:00:09] aiming for Ne3.} Qg6 {[%emt 0:00:05]} 36. Qf3 {[%emt 0:04:26] Weighted Error Value: White=0.20 (precise) /Black=0.28 (precise)} 1/2-1/2

[Event "Romanian Superleague 2022"]
[Site "Oradea"]
[Date "2022.09.27"]
[Round "7.29"]
[White "David, Alexandru-Vasile"]
[Black "Ciorgovean, Iustin"]
[Result "1/2-1/2"]
[ECO "E70"]
[WhiteElo "2417"]
[BlackElo "2314"]
[Annotator "TA"]
[PlyCount "56"]
[EventDate "2022.09.21"]
[EventType "team-tourn"]
[EventCountry "ROU"]
[SourceTitle "playchess.com"]
[Source "ChessBase"]
[SourceQuality "1"]
[TimeControl "40/5400+30:1800+30"]

{[%evp 11,56,41,41,27,47,43,46,50,43,48,52,53,60,52,56,36,62,16,11,25,52,62,128,132,182,172,333,-117,-131,-118,-125,-131,-124,-109,-108,-110,-107,-111,-83,-69,-68,-104,-73,-74,-75,-84,-58]} 1. d4 {[%emt 0:00:14]} Nf6 {[%emt 0:00:05]} 2. c4 {[%emt 0:00:06]} g6 {[%emt 0:00:05]} 3. Nc3 {[%emt 0:00:06]} Bg7 {[%emt 0:00:06]} 4. e4 {[%emt 0:00:06]} d6 {[%emt 0:00:03]} 5. Nge2 {[%emt 0:00:05]} O-O {[%emt 0:00:24]} 6. Ng3 {[%emt 0:00:05]} a6 {[%emt 0:07:25]} 7. Be2 {[%emt 0:01:42] E70: King's Indian: Miscellaneous lines with 4 e4, including 5 Nge2 and 5 Bd3 0-0 6 Nge2.} c5 {[%emt 0:00:46]} 8. d5 {[%emt 0:00:06]} b5 {[%emt 0:02:17]} 9. cxb5 {[%emt 0:01:26] White is slightly better.} axb5 {[%emt 0:00:32]} 10. Bxb5 {[%emt 0:01:43]} Ba6 {[%emt 0:00:31]} 11. O-O {[%emt 0:00:29]} Bxb5 {[%emt 0:03:54]} 12. Nxb5 {[%emt 0:01:41][%cal Bc3b5,Bb5a3,Ba3c4][%mdl 32]} Na6 {[%emt 0:01:01]} 13. Bd2 {[%emt 0:02:19]} Qb6 {[%emt 0:04:00]} 14. Qe2 {[%emt 0:01:30]} (14. a4 $14) 14... Rfb8 $11 {[%emt 0:06:59]} 15. a4 {[%emt 0:04:49] [#]} Ne8 $146 {[%emt 0:01:14]} ({Predecessor:} 15... Nc7 16. Nxc7 Qxc7 17. Bc3 Qb7 18. Rfc1 Qa6 19. Qd2 Rb3 20. a5 Qb5 21. e5 dxe5 {1-0 (37) Ovsejevitsch,S (2597)-Quinn,J (2149) Bad Wiessee 2010}) 16. Bc3 {[%emt 0:04:15]} Nec7 {[%emt 0:00:39] [#]} (16... Nac7 $14) 17. Na3 $1 $16 {[%emt 0:10:15] White has more active pieces.} ({Much weaker is} 17. Bxg7 $6 Kxg7 18. Nc3 Qxb2 $11) 17... Qb3 {[%emt 0:06:07] [#]} (17... Bxc3 $16 {keeps fighting.} 18. bxc3 Qb3) 18. Nc4 $1 $18 {[%emt 0:01:43] aiming for Ra3.} Nb4 $2 {[%emt 0:03:55]} (18... Ne8 19. Ra3 Qb7 20. Bxg7 Nxg7) 19. Rfc1 $2 {[%emt 0:01:52]} ({White must play} 19. Ra3 $18 Qc2 20. Bd2) 19... Na2 $17 {[%emt 0:02:22]} 20. Rc2 {[%emt 0:14:03]} Nxc3 {[%emt 0:10:19]} 21. bxc3 {[%emt 0:00:14]} Rxa4 {[%emt 0:00:44]} ({And not} 21... Bxc3 22. Ra3 Qb1+ 23. Nf1 $17) 22. Rxa4 {[%emt 0:06:01]} Qxa4 {[%emt 0:00:10]} 23. Ra2 {[%emt 0:00:22]} Qe8 {[%emt 0:05:09]} 24. Qd3 {[%emt 0:04:49]} Nb5 {[%emt 0:04:58]} 25. Rc2 {[%emt 0:00:07]} Ra8 {[%emt 0:01:46]} 26. h3 {[%emt 0:03:07]} Na3 {[%emt 0:00:47] Black is better.} 27. Nxa3 {[%emt 0:02:19]} Rxa3 {[%emt 0:00:07]} 28. Ne2 {[%emt 0:00:13]} Qa4 {[%emt 0:02:46] Weighted Error Value: White=0.34/Black=0.23 (precise)} 1/2-1/2

[Event "Romanian Superleague 2022"]
[Site "Oradea"]
[Date "2022.09.27"]
[Round "7.30"]
[White "Carmaciu, Lucian-Catalin"]
[Black "Berescu, Alin-Mile"]
[Result "1/2-1/2"]
[ECO "A45"]
[WhiteElo "2376"]
[BlackElo "2440"]
[Annotator "TA"]
[PlyCount "20"]
[EventDate "2022.09.21"]
[EventType "team-tourn"]
[EventCountry "ROU"]
[SourceTitle "playchess.com"]
[Source "ChessBase"]
[SourceQuality "1"]
[TimeControl "40/5400+30:1800+30"]

{[%evp 13,20,0,5,0,0,-82,-93,-87,-53]} 1. d4 {[%emt 0:00:05]} Nf6 {[%emt 0:00:35]} 2. Bf4 {[%emt 0:00:12]} c5 {[%emt 0:02:02]} 3. d5 {[%emt 0:01:38]} Qb6 {[%emt 0:01:23]} 4. Nc3 {[%emt 0:00:13]} Qxb2 {[%emt 0:04:27]} 5. Bd2 {[%emt 0:00:17]} Qb6 {[%emt 0:00:20]} 6. e4 {[%emt 0:00:05]} d6 {[%emt 0:00:06]} 7. f4 {[%emt 0:00:18]} e6 {[%emt 0:04:29] 7...e6 was played by the boomers.} 8. Nf3 {[%emt 0:07:56] A45: Trompowsky Attack.} exd5 {[%emt 0:01:13]} 9. exd5 {[%emt 0:04:12]} (9. e5 $11 dxe5 10. fxe5) 9... Be7 $17 {[%emt 0:03:30]} 10. Bd3 {[%emt 0:09:12] [#]} Na6 $146 {[%emt 0:05:30] Weighted Error Value: White=0.40/Black=0.01 (flawless)} ({Predecessor:} 10... O-O 11. Rb1 Qd8 12. O-O Bd7 13. Rxb7 Re8 14. Ng5 Qc8 15. Rb1 c4 16. Be2 Bf8 {0-1 (38) Urban,M (1711)-Rosenauer,H (1834) Nordrheinwestfalen 2018}) 1/2-1/2